[Event "22nd Hoogeveen Open 2018"]
[Site "Hoogeveen"]
[Date "2018.10.25"]
[Round "7"]
[White "Elgersma, Onno"]
[Black "Boersma, Jan"]
[Result "0-1"]
[ECO "B36"]
[WhiteElo "2223"]
[BlackElo "2047"]
[Annotator "NA"]
[PlyCount "80"]
[EventDate "2018.10.20"]
[EventType "swiss"]
[EventCountry "NED"]
[SourceTitle "playchess.com"]
[Source "ChessBase"]
[SourceQuality "1"]
[TimeControl "40/5400+30:1800+30"]

1. e4 {[%emt 0:00:00]} c5 {[%emt 0:00:00]} 2. Nf3 {[%emt 0:00:00]} g6 {[%emt 0:00:00]} 3. c4 {[%emt 0:00:08]} Nc6 {[%emt 0:00:00]} 4. d4 {[%emt 0:00:04]} cxd4 {[%emt 0:00:00]} 5. Nxd4 {[%emt 0:00:04]} Nf6 {[%emt 0:00:00]} 6. Nc3 {[%emt 0:00:18]} d6 {[%emt 0:00:03]} 7. Be2 {[%emt 0:00:19]} Nxd4 {[%emt 0:00:08]} 8. Qxd4 {[%emt 0:00:05]} Bg7 {[%emt 0:00:05]} 9. Be3 {[%emt 0:00:57]} O-O {[%emt 0:00:16]} 10. Qd2 {[%emt 0:00:30]} Be6 {[%emt 0:00:11]} 11. f3 {[%emt 0:04:43]} Rc8 {[%emt 0:00:26]} 12. Nd5 {[%emt 0:04:48] LiveBook: 16 Partien B36: Sizilianisch (Maroczy-Aufbau)} Bxd5 {[%emt 0:08:24]} (12... Nxd5 13. exd5 Bd7 14. O-O e6 15. Bg5 Qb6+ 16. Be3 Qd8 17. Bg5 Qb6+ 18. Be3 {½-½ (18) Palliser,R (2418)-Emms,J (2488) Hull 2018}) 13. exd5 {[%emt 0:01:51]} Nd7 {[%emt 0:00:56]} 14. O-O {[%emt 0:00:43]} a5 {[%emt 0:00:56]} 15. Rab1 {[%emt 0:05:04]} Nc5 {[%emt 0:01:18]} 16. b3 {[%emt 0:01:22]} b6 $146 {[%emt 0:05:42]} ({Vorgänger:} 16... Nd7 17. Rfc1 b6 18. Bf1 Nc5 19. Re1 e6 20. dxe6 fxe6 {0-1 (47) Guanciale,O-Sardini,P Italy 1984}) 17. Rfc1 {[%emt 0:02:28]} Qd7 {[%emt 0:07:29]} 18. Bf1 {[%emt 0:01:52]} Qf5 {[%emt 0:00:39]} 19. Re1 {[%emt 0:10:22]} Rfe8 {[%emt 0:03:58]} 20. a3 {[%emt 0:06:31]} Ra8 {[%emt 0:07:37]} 21. Kh1 {[%emt 0:03:47]} Be5 {[%emt 0:01:34]} 22. Be2 {[%emt 0:05:15]} (22. b4 $16 Nd7 23. Rb3) 22... h5 {[%emt 0:05:25]} 23. Rec1 {[%emt 0:05:31]} a4 {[%emt 0:02:35]} 24. f4 {[%emt 0:13:56]} Bg7 {[%emt 0:12:16]} ({Much worse is} 24... Nxb3 $6 25. Rxb3 axb3 26. Bd3 $11) (24... Ne4 $17 25. Qb4 {[#]} Bc3 $1 {[%mdl 512]} 26. Qxb6 Reb8) 25. Bxc5 {[%emt 0:05:03]} bxc5 {[%emt 0:01:09]} 26. Rf1 {[%emt 0:01:36]} axb3 {[%emt 0:02:41]} 27. Rxb3 {[%emt 0:00:16]} Reb8 {[%emt 0:00:09]} 28. Qd1 {[%emt 0:05:48]} Bd4 {[%emt 0:07:26]} 29. Bd3 {[%emt 0:00:49]} Qf6 {[%emt 0:02:40]} 30. f5 {[%emt 0:04:40]} (30. Rxb8+ $11 {was the only way to keep the balance.} Rxb8 31. f5) 30... Rxb3 {[%emt 0:01:09]} 31. Qxb3 {[%emt 0:00:11] [#]} g5 $1 {[%emt 0:00:05]} 32. Re1 {[%emt 0:05:41]} Kg7 {[%emt 0:04:06]} 33. a4 {[%emt 0:01:30]} g4 {[%emt 0:00:38]} 34. Qd1 {[%emt 0:02:53]} Qh4 {[%emt 0:03:52]} 35. g3 {[%emt 0:04:56]} Qg5 {[%emt 0:03:17]} 36. Re4 {[%emt 0:00:14] [#]} Rxa4 $1 {[%emt 0:01:58]} 37. Bb1 $19 {[%emt 0:03:42]} Rb4 {[%emt 0:01:46]} 38. Bc2 {[%emt 0:00:28]} Rxc4 {[%emt 0:01:00]} 39. f6+ {[%emt 0:00:28]} exf6 {[%emt 0:01:41]} 40. Kg2 {[%emt 0:00:17]} Qxd5 {[%emt 0:00:58]} 0-1

[Event "22nd Hoogeveen Open 2018"]
[Site "Hoogeveen"]
[Date "2018.10.25"]
[Round "7"]
[White "Zarkovic, Mila"]
[Black "Verhoef, Pieter"]
[Result "1/2-1/2"]
[ECO "B81"]
[WhiteElo "2213"]
[BlackElo "2058"]
[Annotator "NA"]
[PlyCount "69"]
[EventDate "2018.10.20"]
[EventType "swiss"]
[EventCountry "NED"]
[SourceTitle "playchess.com"]
[Source "ChessBase"]
[SourceQuality "1"]
[TimeControl "40/5400+30:1800+30"]

1. e4 {[%emt 0:00:00]} c5 {[%emt 0:00:00]} 2. Nf3 {[%emt 0:00:01]} d6 {[%emt 0:00:00]} 3. d4 {[%emt 0:00:04]} cxd4 {[%emt 0:00:00]} 4. Nxd4 {[%emt 0:00:03]} Nf6 {[%emt 0:00:00]} 5. Nc3 {[%emt 0:00:04]} a6 {[%emt 0:00:00]} 6. h3 {[%emt 0:00:28]} e6 {[%emt 0:00:05]} 7. g4 {[%emt 0:00:06]} d5 {[%emt 0:00:04] B81: Sicilian Scheveningen: Keres Attack} (7... h6 8. Bg2 g5 9. Be3 Nbd7 10. Qe2 Ne5 11. O-O-O Nfd7 12. h4 Rg8 13. hxg5 hxg5 14. Kb1 b5 15. f4 gxf4 16. Bxf4 Bb7 {½-½ (56) Karjakin,S (2773)-Mamedyarov,S (2801) Saint Louis 2018}) 8. Nde2 {[%emt 0:01:38]} Nxe4 {[%emt 0:00:07]} 9. Nxe4 {[%emt 0:00:05]} dxe4 {[%emt 0:00:07]} 10. Qxd8+ {[%emt 0:00:08]} Kxd8 {[%emt 0:00:05]} 11. Bg2 {[%emt 0:02:49]} f5 $146 {[%emt 0:04:43]} ({Predecessor:} 11... Bd7 12. Bxe4 Bc6 13. Ng3 Be7 14. Be3 Bxe4 15. Nxe4 {½-½ (55) Pablos Tenrero,R (1965)-Martos de la Vega,A (1956) Mostoles 2014}) 12. gxf5 {[%emt 0:01:24]} exf5 {[%emt 0:00:09]} 13. Be3 {[%emt 0:00:51]} Nc6 {[%emt 0:00:40]} 14. O-O-O+ {[%emt 0:03:44]} Ke8 {[%emt 0:00:17]} 15. f3 {[%emt 0:13:46]} g5 {[%emt 0:00:54]} 16. fxe4 {[%emt 0:02:19]} f4 {[%emt 0:00:28]} 17. Bb6 {[%emt 0:00:42]} Bg7 {[%emt 0:03:41]} 18. Bf3 {[%emt 0:09:34]} h5 $1 {[%emt 0:07:32]} 19. Rhg1 {[%emt 0:00:52]} Bf6 {[%emt 0:00:43]} 20. Nc3 {[%emt 0:20:53]} Bxh3 {[%emt 0:29:16]} 21. Nd5 {[%emt 0:02:29]} Kf7 {[%emt 0:02:08]} 22. Nxf6 {[%emt 0:20:23]} Kxf6 {[%emt 0:00:08]} 23. Rd6+ {[%emt 0:04:57]} Be6 {[%emt 0:00:08]} 24. e5+ {[%emt 0:00:38]} Kf5 {[%emt 0:02:47]} 25. Re1 {[%emt 0:01:15]} Rae8 {[%emt 0:05:30] [#]} (25... Rhe8 $11 26. Be4+ (26. Bxh5 g4 $17) 26... Kxe5) 26. Be4+ $1 {[%emt 0:00:25]} Kxe5 {[%emt 0:00:08]} 27. Bc7 {[%emt 0:03:26]} Kf6 {[%emt 0:06:29]} 28. Bd5 $16 {[%emt 0:00:04]} Ne5 {[%emt 0:00:52]} 29. Bd8+ {[%emt 0:10:05]} Kf5 {[%emt 0:10:31]} 30. Be4+ {[%emt 0:00:04]} Kg4 {[%emt 0:00:06]} 31. Rg1+ {[%emt 0:00:10]} Kh3 {[%emt 0:00:08]} 32. Rh1+ {[%emt 0:01:26]} Kg4 {[%emt 0:01:17]} 33. Rg1+ {[%emt 0:00:00]} Kh3 {[%emt 0:00:10]} 34. Rh1+ {[%emt 0:00:02]} Kg4 {[%emt 0:01:03]} 35. Rg1+ {[%emt 0:00:00]} 1/2-1/2

[Event "22nd Hoogeveen Open 2018"]
[Site "Hoogeveen"]
[Date "2018.10.25"]
[Round "7"]
[White "Damen, Jip"]
[Black "Van de Pavoordt, Max"]
[Result "1-0"]
[ECO "A11"]
[WhiteElo "2192"]
[BlackElo "2034"]
[Annotator "NA"]
[PlyCount "63"]
[EventDate "2018.10.20"]
[EventType "swiss"]
[EventCountry "NED"]
[SourceTitle "playchess.com"]
[Source "ChessBase"]
[SourceQuality "1"]
[TimeControl "40/5400+30:1800+30"]

1. Nf3 {[%emt 0:00:00]} d5 {[%emt 0:00:00]} 2. c4 {[%emt 0:00:03]} c6 {[%emt 0:00:02]} 3. e3 {[%emt 0:00:11]} Nf6 {[%emt 0:00:26]} 4. Nc3 {[%emt 0:00:09]} e6 {[%emt 0:02:53]} 5. Qc2 {[%emt 0:01:37]} Nbd7 {[%emt 0:01:40]} 6. Be2 {[%emt 0:00:55] A11: English Opening: 1...c6} (6. b3 Bd6 7. Bb2 O-O 8. Be2 Qe7 (8... Re8 9. h3 dxc4 10. bxc4 e5 11. d3 Nc5 12. Rd1 Qe7 13. O-O h6 14. Rfe1 Bf5 15. Qc1 e4 16. dxe4 Nfxe4 17. Nxe4 Nxe4 {0-1 (60) Korotylev,A (2600)-Dreev,A (2607) Moscow 2007}) 9. O-O b6 10. cxd5 cxd5 11. Nb5 Ba6 12. Qd1 Bxb5 13. Bxb5 a6 14. Be2 Ba3 15. Qc1 Bxb2 16. Qxb2 {½-½ (33) Ivanchuk,V (2728)-Duda,J (2707) Tbilisi 2017}) 6... Bd6 {[%emt 0:01:48]} 7. Rg1 $146 {[%emt 0:06:13]} Ne5 {[%emt 0:06:02]} 8. Nxe5 {[%emt 0:01:20]} Bxe5 {[%emt 0:01:08]} 9. f4 {[%emt 0:01:59]} Bc7 {[%emt 0:02:12]} 10. d4 {[%emt 0:03:05]} Ba5 {[%emt 0:07:02]} 11. Bd2 {[%emt 0:02:44]} Bxc3 {[%emt 0:04:45]} 12. Bxc3 {[%emt 0:00:25]} Ne4 {[%emt 0:00:53]} 13. O-O-O {[%emt 0:01:32]} Qh4 {[%emt 0:06:50]} 14. Bf3 {[%emt 0:21:22]} Nd6 {[%emt 0:11:41]} (14... Nxc3 $11 {remains equal.} 15. bxc3 O-O) 15. c5 {[%emt 0:02:44]} Nc4 {[%emt 0:04:48]} 16. g3 {[%emt 0:06:07]} Qd8 {[%emt 0:00:50]} 17. Rde1 {[%emt 0:04:41]} a5 {[%emt 0:06:32]} 18. e4 {[%emt 0:04:23]} a4 {[%emt 0:01:19]} 19. Be2 {[%emt 0:08:40]} b5 {[%emt 0:03:45]} 20. cxb6 {[%emt 0:03:51]} (20. Bd3 $142) 20... Qxb6 {[%emt 0:03:36]} 21. Bxc4 {[%emt 0:01:05]} dxc4 {[%emt 0:00:06]} 22. d5 {[%emt 0:00:27]} O-O {[%emt 0:01:54]} 23. d6 {[%emt 0:00:21]} (23. dxe6 $14 Bxe6 24. f5) 23... c5 {[%emt 0:01:35]} 24. e5 {[%emt 0:02:24]} a3 {[%emt 0:00:37]} 25. Re2 {[%emt 0:02:09]} (25. b3 $15) 25... Bd7 {[%emt 0:03:12]} 26. g4 {[%emt 0:02:27]} Rfb8 {[%emt 0:03:27]} 27. Qe4 {[%emt 0:03:14]} Bc6 {[%emt 0:01:10]} 28. Qe3 $17 {[%emt 0:00:31]} axb2+ {[%emt 0:00:56]} 29. Rxb2 {[%emt 0:00:09]} Qa7 {[%emt 0:00:26]} 30. Rd1 {[%emt 0:07:53]} Rb6 {[%emt 0:03:25]} 31. Rb4 Rxb4 {[%emt 0:00:30]} 32. Bb2 {[%emt 0:00:37]} 1-0

[Event "22nd Hoogeveen Open 2018"]
[Site "Hoogeveen"]
[Date "2018.10.25"]
[Round "7"]
[White "Rakshitta, Ravi"]
[Black "Den Hartog, Marijn"]
[Result "1-0"]
[ECO "D79"]
[WhiteElo "2160"]
[BlackElo "2296"]
[Annotator "NA"]
[PlyCount "77"]
[EventDate "2018.10.20"]
[EventType "swiss"]
[EventCountry "NED"]
[SourceTitle "playchess.com"]
[Source "ChessBase"]
[SourceQuality "1"]
[TimeControl "40/5400+30:1800+30"]

{[%evp 15,74,0,12,12,10,-5,-7,-10,0,0,0,-6,9,9,9,8,23,15,28,24,50,58,32767,25,66,56,32767,63,77,64,61,65,32767,32767,32767,139,136,139,133,138,32767,32767,32767,195,200,201,218,32767,231,32767,32767,232,219,294,32767,32767,32767,525,464,452,445]} 1. Nf3 {[%emt 0:01:11]} Nf6 {[%emt 0:00:00]} 2. g3 {[%emt 0:00:07]} d5 {[%emt 0:00:00]} 3. Bg2 {[%emt 0:00:07]} g6 {[%emt 0:00:12]} 4. O-O {[%emt 0:00:37]} Bg7 {[%emt 0:00:03]} 5. d4 {[%emt 0:00:10]} O-O {[%emt 0:00:11]} 6. c4 {[%emt 0:00:04]} c6 {[%emt 0:00:07]} 7. cxd5 {[%emt 0:00:53]} cxd5 {[%emt 0:00:04]} 8. b3 {[%emt 0:03:47] D79: Fianchetto Grünfeld: Symmetrical Variation (6 0-0 c6 7 cxd5 cxd5)} (8. Ne5 e6 9. Nc3 Nfd7 10. f4 Nc6 11. Be3 Nb6 12. Bf2 Ne7 13. Na4 f6 14. Nxb6 axb6 15. Nd3 Nf5 16. Qb3 Nd6 17. Rfc1 Bd7 18. a4 Rf7 19. Qd1 Bf8 20. b3 Ne4 {½-½ (58) Pantsulaia,L (2587)-Cheparinov,I (2718) Abu Dhabi 2018}) 8... Nc6 {[%emt 0:02:30]} 9. Bb2 {[%emt 0:02:30] LiveBook: 3 Games} Qa5 $146 {[%emt 0:13:31]} ({Predecessor:} 9... Bf5 10. Nbd2 Rc8 11. Nh4 Be6 12. Ndf3 h6 13. Ne1 Qb6 14. e3 Bg4 15. Nhf3 Ne4 16. h3 Bf5 17. Nh4 Bd7 {½-½ (32) Tazlar,P (2239)-Drabek,V (2151) Czech Republic 2017}) 10. Qd2 {[%emt 0:12:34]} Qxd2 {[%emt 0:01:23]} 11. Nbxd2 {[%emt 0:00:06]} Be6 {[%emt 0:01:36]} 12. Rfc1 {[%emt 0:02:41]} Rfc8 {[%emt 0:01:52]} 13. a3 {[%emt 0:01:20]} a5 {[%emt 0:04:27]} 14. e3 {[%emt 0:01:27]} h6 {[%emt 0:05:23]} 15. Bf1 {[%emt 0:00:29]} Rcb8 {[%emt 0:10:07]} 16. Bb5 {[%emt 0:05:40]} Na7 {[%emt 0:00:24]} 17. Be2 {[%emt 0:00:06]} b5 {[%emt 0:08:26]} 18. Ne5 {[%emt 0:03:00]} Nc8 {[%emt 0:09:04]} 19. Rc7 {[%emt 0:11:32]} ({Lieber} 19. Nc6 $16) 19... Ne8 {[%emt 0:04:49]} 20. Rc5 {[%emt 0:00:01]} Ncd6 {[%emt 0:01:27]} 21. Nc6 {[%emt 0:03:23]} Rb7 {[%emt 0:00:21]} 22. a4 {[%emt 0:07:13]} bxa4 {[%emt 0:01:14]} 23. Nxa5 {[%emt 0:01:57]} Rbb8 {[%emt 0:11:01]} 24. Rxa4 {[%emt 0:00:53]} Ne4 {[%emt 0:00:08]} 25. Nxe4 {[%emt 0:02:28]} dxe4 {[%emt 0:00:03]} 26. Bc4 {[%emt 0:04:46]} Bxc4 {[%emt 0:03:41]} 27. Nxc4 {[%emt 0:00:06]} Rxa4 {[%emt 0:03:34]} 28. bxa4 {[%emt 0:00:00]} Nd6 {[%emt 0:00:14]} 29. Nxd6 {[%emt 0:06:48]} exd6 {[%emt 0:00:03]} 30. Rb5 {[%emt 0:00:12]} Ra8 {[%emt 0:02:56]} 31. a5 {[%emt 0:00:38]} Kf8 {[%emt 0:01:16]} 32. Ba3 {[%emt 0:01:25]} Ke7 {[%emt 0:00:49]} 33. Bb4 {[%emt 0:00:13]} Bf8 {[%emt 0:03:43]} 34. d5 {[%emt 0:04:04]} Ra7 {[%emt 0:00:36]} 35. Bc3 {[%emt 0:00:26]} Kd8 {[%emt 0:01:50]} 36. Bd4 {[%emt 0:02:35]} Ra8 {[%emt 0:00:04]} 37. Rb7 {[%emt 0:00:52]} Be7 $18 {[%emt 0:01:08]} 38. Ba7 {[%emt 0:09:36]} Rc8 {[%emt 0:01:18]} 39. a6 {[%emt 0:00:25]} 1-0

[Event "22nd Hoogeveen Open 2018"]
[Site "Hoogeveen"]
[Date "2018.10.25"]
[Round "7"]
[White "Clemens, Adrian"]
[Black "Van der Hagen, Loek"]
[Result "1-0"]
[ECO "A57"]
[WhiteElo "2153"]
[BlackElo "1820"]
[Annotator "NA"]
[PlyCount "85"]
[EventDate "2018.10.20"]
[EventType "swiss"]
[EventCountry "NED"]
[SourceTitle "playchess.com"]
[Source "ChessBase"]
[SourceQuality "1"]
[TimeControl "40/5400+30:1800+30"]

{[%evp 17,79,0,2,8,1,0,12,-23,-13,-9,-28,-61,40,0,48,75,58,72,62,54,60,56,54,54,32767,32767,32767,24,33,37,32767,32767,20,32767,0,32767,32767,32767,32767,32767,91,32767,32767,32767,107,32767,32767,681,32767,32767,32767,32767,32767,32767,32767,460,415,358,921,32767,32767,32767,1537,1950]} 1. d4 {[%emt 0:00:00]} Nf6 {[%emt 0:00:00]} 2. c4 {[%emt 0:00:00]} c5 {[%emt 0:00:00]} 3. d5 {[%emt 0:00:17]} b5 {[%emt 0:00:02]} 4. Qc2 {[%emt 0:00:52]} bxc4 {[%emt 0:00:08]} 5. e4 {[%emt 0:00:04]} e6 {[%emt 0:00:07] A57: Benko/Volga Gambit} (5... d6 6. Bxc4 g6 7. Nc3 Bg7 8. Nf3 Nbd7 9. h3 O-O 10. O-O Rb8 11. Re1 Nh5 12. Be2 Ne5 13. Nxe5 Bxe5 14. Bxh5 gxh5 15. Bh6 Re8 16. Qd2 Kh8 17. Bf4 Bd4 18. Be3 {0-1 (63) Dreev,A (2644)-Perunovic,M (2622) Berlin 2015}) 6. Bxc4 {[%emt 0:01:05]} exd5 {[%emt 0:00:08]} 7. exd5 {[%emt 0:00:05]} d6 {[%emt 0:00:26]} 8. Nc3 {[%emt 0:00:35]} Be7 {[%emt 0:00:07]} 9. Nge2 {[%emt 0:04:28]} O-O {[%emt 0:00:57]} 10. O-O {[%emt 0:01:36] LiveBook: 14 Games} Nbd7 {[%emt 0:00:09]} 11. Bf4 {[%emt 0:01:03]} Nh5 {[%emt 0:02:02]} 12. Be3 {[%emt 0:00:48]} Ne5 {[%emt 0:01:47]} 13. b3 $146 {[%emt 0:04:00]} ({Predecessor:} 13. Bb5) 13... f5 {[%emt 0:02:48]} 14. f4 {[%emt 0:02:15]} Ng4 {[%emt 0:08:14]} (14... Nxc4 $15 15. bxc4 Bf6) 15. Bc1 {[%emt 0:03:16]} Rf6 {[%emt 0:06:17]} 16. h3 {[%emt 0:05:36]} Nh6 {[%emt 0:02:06]} 17. Qd3 {[%emt 0:04:27]} Rg6 {[%emt 0:07:17]} 18. Qf3 {[%emt 0:00:41]} Nf6 {[%emt 0:00:45]} 19. Ng3 {[%emt 0:09:24]} Nd7 {[%emt 0:07:11]} 20. Nh5 {[%emt 0:09:26]} Bh4 {[%emt 0:06:31]} 21. Bb2 {[%emt 0:08:59]} Nf6 {[%emt 0:08:41]} 22. Nxf6+ {[%emt 0:05:21]} Bxf6 {[%emt 0:01:01]} 23. Nd1 {[%emt 0:02:46]} Bxb2 {[%emt 0:01:14]} 24. Nxb2 {[%emt 0:01:15]} Qh4 {[%emt 0:02:07]} 25. Qe3 {[%emt 0:12:33]} Bd7 $1 {[%emt 0:04:30]} 26. Rf3 {[%emt 0:01:12]} Re8 {[%emt 0:04:48]} 27. Qf2 {[%emt 0:00:24]} Qf6 {[%emt 0:08:06]} 28. Rd1 {[%emt 0:00:40]} Nf7 {[%emt 0:05:55]} (28... Ng4 $1 $11 29. hxg4 fxg4) 29. Nd3 {[%emt 0:02:00]} Re4 {[%emt 0:02:05]} 30. Re3 {[%emt 0:04:10]} Qe7 {[%emt 0:01:41]} ({Black should try} 30... h5 $14) 31. Rde1 {[%emt 0:00:47]} Nh6 {[%emt 0:04:47] [#]} 32. Nxc5 $1 {[%emt 0:01:23]} Rxe3 {[%emt 0:08:50]} 33. Rxe3 {[%emt 0:00:07]} Qd8 {[%emt 0:00:36]} 34. Ne6 {[%emt 0:01:20]} Qf6 {[%emt 0:02:04]} 35. Re2 {[%emt 0:03:28]} Qa1+ {[%emt 0:01:31]} 36. Re1 {[%emt 0:04:27]} Qc3 {[%emt 0:00:21]} 37. Qe3 {[%emt 0:00:24]} Qb2 {[%emt 0:00:25]} (37... Qxe3+ $142 38. Rxe3 a5) 38. Re2 {[%emt 0:00:52]} Qa1+ {[%emt 0:00:14]} 39. Kf2 {[%emt 0:01:06]} Qh1 {[%emt 0:00:29]} 40. Ng5 $18 {[%emt 0:00:08]} Rf6 {[%emt 0:02:57]} 41. Re1 {[%emt 0:31:39]} Qh2 {[%emt 0:01:15]} 42. Nf3 {[%emt 0:00:00]} Ng4+ {[%emt 0:00:40]} 43. hxg4 {[%emt 0:00:00]} 1-0

[Event "22nd Hoogeveen Open 2018"]
[Site "Hoogeveen"]
[Date "2018.10.25"]
[Round "7"]
[White "Pham, Khoi"]
[Black "Van Foreest, Machteld"]
[Result "0-1"]
[ECO "C11"]
[WhiteElo "2153"]
[BlackElo "1934"]
[Annotator "NA"]
[PlyCount "72"]
[EventDate "2018.10.20"]
[EventType "swiss"]
[EventCountry "NED"]
[SourceTitle "playchess.com"]
[Source "ChessBase"]
[SourceQuality "1"]
[TimeControl "40/5400+30:1800+30"]

1. e4 {[%emt 0:00:00]} e6 {[%emt 0:00:00]} 2. d4 {[%emt 0:00:00]} d5 {[%emt 0:00:00]} 3. Nc3 {[%emt 0:00:00]} Nf6 {[%emt 0:00:00]} 4. e5 {[%emt 0:00:00]} Nfd7 {[%emt 0:00:00]} 5. f4 {[%emt 0:00:00]} c5 {[%emt 0:00:00]} 6. Nf3 {[%emt 0:00:02]} Nc6 {[%emt 0:00:04]} 7. Be3 {[%emt 0:00:06]} a6 {[%emt 0:00:10]} 8. Qd2 {[%emt 0:00:06]} b5 {[%emt 0:00:03]} 9. dxc5 {[%emt 0:00:22]} Bxc5 {[%emt 0:00:10]} 10. Bxc5 {[%emt 0:00:07]} Nxc5 {[%emt 0:00:03]} 11. Qf2 {[%emt 0:00:07]} Qb6 {[%emt 0:00:04]} 12. Bd3 {[%emt 0:00:10]} b4 {[%emt 0:00:11]} 13. Ne2 {[%emt 0:01:01]} a5 {[%emt 0:00:08]} 14. O-O {[%emt 0:00:57]} Ba6 {[%emt 0:06:08]} 15. Rad1 {[%emt 0:01:44] LiveBook: 12 Games [#] C11: French: Classical System: 4 e5 and 4 Bg5 dxe4} a4 $146 {[%emt 0:04:52]} ({Predecessor:} 15... Na4 16. Qxb6 Nxb6 17. b3 Ke7 18. Ned4 Nxd4 19. Nxd4 g6 20. Bxa6 Rxa6 21. a3 bxa3 22. Ra1 Rha8 23. Rxa3 Nd7 24. Rfa1 Nb8 25. Kf2 Nc6 26. Ke3 Rc8 27. c3 {½-½ (27) Stukopin,A (2495)-Shimanov,A (2640) Moscow 2013}) 16. Nfd4 {[%emt 0:14:15]} Nxd4 {[%emt 0:03:53]} 17. Nxd4 {[%emt 0:10:50]} b3 {[%emt 0:04:51]} 18. axb3 {[%emt 0:23:28]} Bxd3 {[%emt 0:02:28]} 19. cxd3 {[%emt 0:00:59]} Nxb3 {[%emt 0:02:00]} 20. Nxb3 {[%emt 0:06:18]} Qxf2+ {[%emt 0:01:13]} 21. Kxf2 {[%emt 0:01:06]} axb3 {[%emt 0:00:32]} 22. Ke3 {[%emt 0:09:39]} Kd7 {[%emt 0:02:26]} 23. g4 {[%emt 0:01:07]} Ra2 {[%emt 0:02:52]} 24. Rd2 {[%emt 0:00:26]} Rc8 {[%emt 0:00:32]} 25. Rff2 {[%emt 0:01:17]} Rc1 {[%emt 0:04:24]} 26. f5 {[%emt 0:03:36]} Rg1 {[%emt 0:06:05]} 27. h3 {[%emt 0:06:27]} Rh1 {[%emt 0:03:10]} 28. Rh2 {[%emt 0:01:37]} Re1+ {[%emt 0:00:45]} 29. Rde2 {[%emt 0:01:24]} Rxb2 {[%emt 0:02:38]} 30. Rxe1 {[%emt 0:04:23]} Rxh2 {[%emt 0:00:06]} 31. Rb1 {[%emt 0:00:33]} b2 {[%emt 0:03:03]} 32. Kd4 {[%emt 0:01:48]} Rc2 {[%emt 0:00:13]} 33. Ke3 {[%emt 0:05:13]} Kc6 {[%emt 0:00:18]} 34. d4 $19 {[%emt 0:00:14]} Rh2 {[%emt 0:00:40]} 35. h4 {[%emt 0:02:58]} Kb5 {[%emt 0:00:08]} 36. fxe6 {[%emt 0:02:52]} fxe6 {[%emt 0:00:05]} 0-1